Cogmind - Beta 14 @@@ ROGUE MODE // 2024.11.09 @ 11:39:49 Player: Fangrelle Result: Destroyed by S-10 Pest with Light Assault Rifle Performance ------------- Evolutions (0) 0 Regions Visited (2) 400 Robots Destroyed (25) 125 Value Destroyed (400) 400 Prototype IDs (0) 0 Alien Tech Used (0) 0 Bonus (0) 0 TOTAL SCORE: 925 Bonus ------- None Cogmind --------- Core Integrity 0/250 Matter 180/300 Energy 100/100 System Corruption 2% Temperature Cool (0) Movement Treading (400) Ox3 Location -10/Mines Parts ------- > --- POWER (1) -------- (None) > --- PROPULSION (2) --- Light Treads > --- UTILITY (2) ------ Huge Storage Unit Targeting Computer > --- WEAPON (2) ------- (None) > --- INVENTORY (25) --- Medium Storage Unit Huge Storage Unit Medium Matter Pod (0) Large Matter Pod (0) Visual Processing Unit Signal Interpreter Signal Interpreter Improved Terrain Scanner Transport Network Coupler Targeting Computer Peak State ------------ > --- POWER ------------ Ion Engine > --- PROPULSION ------- Light Treads Light Treads > --- UTILITY ---------- Medium Storage Unit Improved Terrain Scanner > --- WEAPON ----------- Medium Laser Assault Rifle > --- INVENTORY -------- Light Ion Engine Compact Wheel Compact Wheel Small Storage Unit Medium Matter Pod Large Matter Pod Signal Interpreter Targeting Computer Light Cannon Mining Laser [Rating: 10] Favorites ----------- Power Ion Engine Engine Ion Engine Propulsion Light Treads Treads Light Treads Wheel Compact Wheel Utility Huge Storage Unit Device Improved Terrain Scanner Storage Huge Storage Unit Processor Targeting Computer Protection Light Armor Plating Weapon Medium Laser Energy Gun Medium Laser Ballistic Gun Assault Rifle Ballistic Cannon Light Cannon Special Weapon Mining Laser Build | -11 -10 -10 ------- Run | Yrd Mat Min Slots Evolved . | . . . Power . | . . . Propulsion . | . . . Utility . | . . . Weapon . | . . . Parts Attached 24 | 7 11 6 Power 4 | 1 3 . Engine 4 | 1 3 . Core . | . . . Reactor . | . . . Propulsion 7 | 2 3 2 Treads 4 | 2 1 1 Leg . | . . . Wheel 3 | . 2 1 Hover . | . . . Flight . | . . . Utility 6 | 2 2 2 Device 1 | 1 . . Storage 3 | 1 2 . Processor 1 | . . 1 Hackware . | . . . Protection 1 | . . 1 Artifact . | . . . Weapon 7 | 2 3 2 Energy Gun 4 | 1 3 . Energy Cannon . | . . . Ballistic Gun 1 | 1 . . Ballistic Cannon 1 | . . 1 Launcher . | . . . Special Weapon 1 | . . 1 Impact Weapon . | . . . Slashing Weapon . | . . . Piercing Weapon . | . . . Special Melee Weapon . | . . . Unidentified Prototypes . | . . . Parts Lost 11 | . 5 6 Power 3 | . 2 1 Propulsion 2 | . 1 1 Utility 1 | . . 1 Weapon 5 | . 2 3 Highest Loss Streak 3 | . 3 3 To Critical Strikes . | . . . Average Slot Usage (%) 93 | . 98 85 Engine 13 | . 13 14 Treads 20 | . 25 11 Wheel 7 | . 1 15 Device 8 | . 14 . Storage 14 | . 14 14 Processor 4 | . . 11 Energy Gun 11 | . 17 2 Ballistic Gun 5 | . 10 . Special Weapon 4 | . . 11 Peak Build Rating 10 | 9 10 10 Average Rating 8 | 5 9 7 On Entrance 6 | . 9 10 Naked Turns . | . . . Heaviest Build 90 | 15 90 90 Greatest Support 40 | 40 40 32 Greatest Overweight (x) 5 | 3 5 5 Average Overweight (x) 2 | . 1 3 Largest Inventory Capacity 25 | 8 25 25 Average Capacity 22 | 7 21 25 Most Carried 15 | 4 15 14 Average Carried 11 | 2 12 10 Final Capacity 25 | 8 25 25 Final Carried 14 | 4 14 10 Class Distribution -------------------- 100% | Mutant Dominant Class ---------------- Mutant | -10/Materials Mutant | -10/Mines Resources | -11 -10 -10 ----------- Run | Yrd Mat Min Matter Collected 512 | 145 231 136 Remotely . | . . . Salvage Created 646 | 81 486 79 Parts 53 | 5 44 4 Haulers Intercepted 1 | . 1 . Recyclers Shooed 1 | . 1 . Parts Field Recycled . | . . . Retrieved Matter . | . . . Parts Self-Destructed . | . . . Prevented . | . . . Kills | -11 -10 -10 ------- Run | Yrd Mat Min Combat Hostiles Destroyed 14 | . 12 2 Guns 11 | . 11 . Cannons 2 | . . 2 AOE 1 | . 1 . Classes Destroyed 8 | 2 6 . Worker 2 | . 2 . Builder 1 | . 1 . Tunneler 2 | 1 1 . Hauler 1 | . 1 . Recycler 2 | 1 1 . Watcher 3 | . 3 . Swarmer 8 | . 8 . Grunt 6 | . 4 2 Best Kill Streak 6 | 2 6 2 Combat Bots Only 3 | . 3 2 Max Kills in Single Turn 2 | 1 2 1 Gunslinging . | . . . Exploded 1 | . 1 . Melee . | . . . Uniques/NPCs Destroyed . | . . . Combat | -11 -10 -10 -------- Run | Yrd Mat Min Hostile Shots Fired 139 | . 76 63 Missed 28 | . 17 11 Damage Taken 1311 | . 763 548 Core 255 | . 158 97 Absorbed by Shields . | . . . Core Remaining (%) 100 | 100 . . Volleys Fired 79 | 8 52 19 Largest 2 | 2 2 2 Hottest 100 | 70 100 100 Shots Fired 141 | 15 97 29 Gun 130 | 15 97 18 Cannon 9 | . . 9 Launcher . | . . . Special 2 | . . 2 Kinetic 57 | 8 40 9 Thermal 63 | 7 47 9 Explosive . | . . . Electromagnetic 21 | . 10 11 Robot Hit Streak 11 | 3 11 6 Robot Miss Streak 6 | 2 5 6 Penetration Max . | . . . Secondary Targets 1 | . 1 . Max Gunslinging Chain 1 | . 1 . Shots Hit Robots 85 | 10 60 15 Core Hits 32 | 3 25 4 Critical Kills . | . . . Critical Parts Destroyed . | . . . Critical Strikes 3 | . 3 . Burn 3 | . 3 . Melee Attacks . | . . . Impact . | . . . Slashing . | . . . Piercing . | . . . Sneak Attacks . | . . . Combat Hostiles . | . . . Follow-up Attacks . | . . . Damage Inflicted 1564 | 124 1215 225 Guns 1047 | 124 802 121 Cannons 103 | . . 103 Explosions 398 | . 398 . Melee . | . . . Ramming 16 | . 15 1 Kinetic 504 | 74 327 103 Thermal 866 | 50 779 37 Explosive . | . . . Electromagnetic 178 | . 94 84 Impact . | . . . Slashing . | . . . Piercing . | . . . Highest Corruption 2 | . 2 2 Average Corruption 2 | . 2 2 Corruption Purged . | . . . Corruption Blocked . | . . . Effects 16 | . 6 10 Message Errors 5 | . 2 3 Matter Fused 6 | . 1 5 Energy Discharges 2 | . 2 . Data Loss (minor) 1 | . 1 . Alerts 2 | . . 2 Overload Shots . | . . . Overflow Damage 257 | . 257 . Projectiles . | . . . Explosions 257 | . 257 . Melee . | . . . Knockbacks . | . . . Impact . | . . . Kinetic . | . . . Secondary . | . . . Self-Inflicted Damage 227 | . 227 . Shots 3 | . 3 . Rammed 3 | . 1 2 Targets Rammed 3 | . 1 2 Kicked . | . . . Crushed . | . . . Highest Temperature 467 | 63 129 467 Average Temperature 90 | 32 26 238 Received Heat Transfer 294 | . 96 198 Effects 5 | . . 5 Shutdowns 1 | . . 1 Matter Decay 1 | . . 1 Short Circuit 2 | . . 2 Damage (minor) 1 | . . 1 Siege Activations . | . . . Robots Corrupted . | . . . Combat Hostiles . | . . . Parts Fried . | . . . Impact Corruptions . | . . . Robots Melted . | . . . Combat Hostiles . | . . . Parts Melted 1 | . 1 . Heat Transferred 1841 | 148 1582 111 Parts Sabotaged . | . . . Parts Stolen . | . . . Parts Stripped . | . . . Power Chain Reactions 1 | . 1 . Alert | -11 -10 -10 ------- Run | Yrd Mat Min Peak Influence 181 | 10 181 92 Initial 57 | . 6 57 Average 60 | 3 83 30 Maximum Alert Level . | . . . Low Security (%) 100 | 100 100 100 Level 1 . | . . . Level 2 . | . . . Level 3 . | . . . Level 4 . | . . . Level 5 . | . . . High Security . | . . . Max Security . | . . . Squads Dispatched 2 | . 2 . Investigation 2 | . 2 . Extermination . | . . . Reinforcement . | . . . Assault . | . . . Garrison . | . . . Intercept . | . . . Searches Triggered . | . . . Construction Impeded . | . . . Haulers Reinforced . | . . . Active Scanning Responses . | . . . Cargo Convoy Interrupts . | . . . Stealth | -11 -10 -10 --------- Run | Yrd Mat Min Distress Signals 1 | . 1 . Communications Jammed . | . . . Distress Signals . | . . . Times Spotted 26 | . 21 5 Peak Tracking Total 4 | . 4 3 Tactical Retreats . | . . . Traps | -11 -10 -10 ------- Run | Yrd Mat Min Traps Triggered 1 | . 1 . Indirectly . | . . . Trap Hack Attempts . | . . . Triggered . | . . . Disarmed . | . . . Reprogrammed . | . . . Reused . | . . . Traps Extracted . | . . . Installed . | . . . Triggered . | . . . Machines | -11 -10 -10 ---------- Run | Yrd Mat Min Machines Disabled 2 | . 2 . Max in Single Turn 2 | . 2 . Machines Repaired . | . . . Machines Dismantled . | . . . Machines Sabotaged . | . . . Overloaded Fab Kills . | . . . Hacking | -11 -10 -10 --------- Run | Yrd Mat Min Machines Accessed 10 | . 10 . Terminals 8 | . 8 . Fabricators . | . . . Repair Stations . | . . . Recycling Units 2 | . 2 . Scanalyzers . | . . . Garrison Access . | . . . Total Hacks 33 | . 33 . Successful 20 | . 20 . Failed 12 | . 12 . Catastrophic 1 | . 1 . Database Lockouts 1 | . 1 . Manual 31 | . 31 . Terminals 30 | . 30 . Fabricators . | . . . Repair Stations . | . . . Recycling Units 3 | . 3 . Scanalyzers . | . . . Garrison Access . | . . . Terminal Hacks 5 | . 5 . Robot Analysis 2 | . 2 . Alert Level 1 | . 1 . Locate Traps 1 | . 1 . Zone Layout 1 | . 1 . Fabricator Hacks . | . . . Repair Station Hacks . | . . . Recycling Unit Hacks 1 | . 1 . Retrieve Components 1 | . 1 . Scanalyzer . | . . . Garrison Access Hacks . | . . . Unauthorized Hacks 14 | . 14 . Terminals 12 | . 12 . Assimilate 3 | . 3 . Botnet 8 | . 8 . Operators 1 | . 1 . Fabricators . | . . . Repair Stations . | . . . Recycling Units 2 | . 2 . Tunnel 2 | . 2 . Scanalyzers . | . . . Garrison Access . | . . . Data Cores Recovered . | . . . Used . | . . . Hacking Detections 8 | . 8 . Full Trace Events 2 | . 2 . Feedback Events . | . . . Feedback Blocked . | . . . Robot Schematics Acquired . | . . . Robots Built . | . . . Authchips . | . . . Time . | . . . Total Robot Build Rating . | . . . Part Schematics Acquired . | . . . Parts Built . | . . . Authchips . | . . . Time . | . . . Total Part Build Rating . | . . . Parts Repaired . | . . . Time . | . . . Parts Recycled . | . . . Recycled Matter . | . . . Retrieved Matter . | . . . Retrieved Components 9 | . 9 . Parts Scanalyzed . | . . . Part Schematics Acquired . | . . . Parts Damaged . | . . . Bothacking | -11 -10 -10 ------------ Run | Yrd Mat Min Used RIF Installer . | . . . Robots Hacked . | . . . Non-combat . | . . . Combat . | . . . Robot Hacks Applied . | . . . Relay Couplers Released . | . . . Fabnet Peak Effective % . | . . . Robots Rewired . | . . . Allies Hacked . | . . . Hacks Repelled . | . . . Allies | -11 -10 -10 -------- Run | Yrd Mat Min Total Allies . | . . . Largest Group . | . . . Highest-Rated Group . | . . . Highest-Rated Ally . | . . . Total Orders . | . . . Ally Attacks . | . . . Total Damage . | . . . Kills . | . . . Allies Corrupted . | . . . Allies Melted . | . . . Intel | -11 -10 -10 ------- Run | Yrd Mat Min Robot Analysis Total 2 | . 2 . Derelict Logs Recovered 1 | . . 1 Drone Launches . | . . . Drone Recoveries . | . . . Exploration | -11 -10 -10 ------------- Run | Yrd Mat Min Turns Passed 2692 | 95 1539 1058 Spaces Moved 855 | 40 554 261 Core 10 | 10 . . Treads 671 | 30 457 184 Legs . | . . . Wheels 174 | . 97 77 Hover . | . . . Flight . | . . . Fastest Speed 50 | 50 160 130 Average Speed 278 | 147 239 379 Slowest Speed 480 | 200 480 480 Overloaded Moves . | . . . Propulsion Burnouts . | . . . Robots Hopped . | . . . Cave-ins Triggered . | . . . Exploration Rate (%) 57 | 4 98 71 Regions Visited 2 Branch Regions 1 Pre-discovered Areas 2 | . 2 . Known Exits Taken . | . . . Unknown Exits Taken 2 | 1 1 . Scrap Searched 1 | . . 1 Spaces Dug . | . . . Terrain Destroyed 39 | . 37 2 Melee . | . . . Projectile 2 | . . 2 AOE 37 | . 37 . Terrain Rammed . | . . . Walls Destroyed . | . . . Machines Disabled . | . . . Actions | -11 -10 -10 --------- Run | Yrd Mat Min Total 1013 | 58 665 290 Wait 31 | . 31 . Move 853 | 39 553 261 Hop . | . . . Pick Up 18 | 4 14 . Fast Attach 8 | 7 1 . Attach 8 | . 5 3 Detach 1 | . 1 . Swap 8 | . 5 3 Drop 4 | . 2 2 Fire 79 | 8 52 19 Melee . | . . . Ram . | . . . Kick . | . . . Crush 3 | . 1 2 Escape Stasis . | . . . Rewire . | . . . Trap . | . . . Miscellaneous . | . . . Route ------- -11/Scrapyard -10/Materials (discovered 4 exits: [*Mat x3] / [*Min]) -10/Mines (discovered 1 exit: [*Mat]) History --------- Turn | Location | Event 13 | -11/Scrapyard | Discovered new exit (range 16) 96 | -11/Scrapyard | Entered Materials 300 | -10/Materials | Build established: Mutant 323 | -10/Materials | Discovered new exit (range 9) 693 | -10/Materials | Discovered new exit (range 13) 1187 | -10/Materials | Discovered new exit (range 9) 1194 | -10/Materials | Central database locked down 1402 | -10/Materials | Core integrity fell below 50% 1432 | -10/Materials | Lost 3 parts (1p1n1w) 1499 | -10/Materials | Discovered new exit (range 6) 1635 | -10/Materials | Entered Mines 1760 | -10/Mines | Core integrity fell below 20% 1782 | -10/Mines | Lost 3 parts (1u2w) 2016 | -10/Mines | Learned 2 Materials zone layouts 2107 | -10/Mines | Discovered new exit (range 10) 2693 | -10/Mines | Destroyed by S-10 Pest with Light Assault Rifle Last Messages --------------- 02094_ K-01 Serf collects debris. 02107_ EXIT=FOUND 02116_ K-01 Serf collects debris. 02222_ Searching scrap... 02222_ Found Sml. Storage Unit. 02222_ Found Hover Unit. 02222_ Found 40 Matter. 02223_ Acquired 40 matter. 02276_ System corrupted: Matter fused (-7). 02301_ System corrupted: Matter fused (-5). 02409_ H0DIN R/KT/L3|Y2HY#EPLCEA 02691_ Lgt. Ion Engine destroyed. Map ----- +----------------------------------------------------+ | ## #?# ##??????? ##????## ## ?????#### #?? | | ?# #??# ##????? ####??# ##?? ???????# #?? | | ?# #### ##### ? #??# ?????# ### | | ?# ? #???# # | | ?# #????? #?????# | | ?###### #### #?????? #??????# #### | | ??????# #### #??????? #??????# ???# | | ??????# #????????# ??????# ????# | | ??????# ### #?????????# ???????# ?????# | | ??????## #??????????????? ?????????# ??????## | | ??????## #??????????????????????????##???????? | | ????### #???????????????????????????????????? | | ???## ##???????????????????????????????????? | | ??## < ###????????????????????????????????????? | | ??# ##??????????????????????????????????????? | | ?## #???????????????????????????????????????? | | ?# #???????????????????????????????????????? | | ?# #??????????????###??????????????????????? | | ## ##?????????????## ##?????????????????????? | | #?????????????## #?????????????????????? | | #?????????????# ##????????????????????? | | ## ##????????????## ####?????????????????? | | ?# ##???????????### ##????????????????? | | ?## ##???????????## #### #??????????? | | ??####???????????## sssu t #??????????? | | #####????????????# @ #??????????? | | #????????????# #;## #???????????? | | ### #????????????# ####???????###???????????? | | ??# #####????????## ##???????????????????????? | | #?# #?####????## ##??????????????????????? | | #?##### ### ##????##k ###????????????????????? | | #?????# ## ###???# #????????????????????? | | #?????# ##?## ### #????????????????????? | | #?????#### ### #?? #???????????????????? | | #???###### ##??? #???????????????????? | | ???## ## ##????? #???????????????????? | | #?## #??????##???????????????????? | | ### #### #???????????????????????????? | | ##??### #??????????????????????????? | | ##?????# #?????????????????????????? | | #??????# #????????????????????????? | | # #??????# #???????????????????????? | | ## ##??????## #???????????????????????? | | ?#### ##????????#### ##???????????????????????? | | ????####?????????????####????????????????????????? | | ?????????????????????????????????????????????????? | | | | | | | | | +----------------------------------------------------+ Best States ------------- Heat Dissipation 25 Energy Generation 10 Energy Capacity 250 Matter Stores 229 Matter Capacity 300 Sight Range 16 Terrain Scan Range 16 Terrain Scan Density 10 Armor Coverage 150 Evasion (%) 40 Targeting Accuracy 5 Recoil Reduction 2 Item Schematics ----------------- None Robot Schematics ------------------ None Fabricated ------------ Nothing Alien Tech Used ----------------- None Achievements -------------- None Challenges ------------ None Game ------ Seed DiametricSchematicGun Manual? 0 Play Time 00:12:27 Cumulative 30.6 hours Start 2024.11.09 @ 11:29:20 End 2024.11.09 @ 11:39:49 Sessions 1 Manual Loads 0 Difficulty Rogue Special Mode None Game No. 65 Rogue 65 Adventurer 0 Explorer 0 Win Type - Total 0 Types 0/0/0/0/0/0/0/0/0 Lore% 29 Gallery% 26 Achievement% 28 Wizard Run 0 Options --------- Layout 0 ASCII 0 Keyboard 0 Movement Mouse Keybinds 0 Fullscreen 1 Font 24/Smallcaps Map View 91x25 Zoom Use 85% Tactical HUD 1 Map Filters NONE Filters NONE Steam 1 RUN: e782f2a9-69ac-41cd-b54b-27f400910a1b